Cogmind - Beta 16.1 @@@ ROGUE MODE // 2026.04.14 @ 13:06:14 Player: Wulphy Result: Destroyed by Y-54 Guardian via exploding Fusion Modulator Performance ------------- Evolutions (4) 2000 Regions Visited (6) 1200 Robots Destroyed (73) 365 Value Destroyed (1996) 1996 Prototype IDs (22) 440 Alien Tech Used (0) 0 Bonus (1003) 1003 TOTAL SCORE: 7004 Bonus ------- Follower Combat Kills 216 Registered with UFD 300 Met Optimus in HQ 500 Friendly Fire -13 Cogmind --------- Core Integrity 0/850 Matter 117/300 Energy 85/100 System Corruption 1% Temperature Cool (85) Movement Rolling (100) Location -6/Factory Parts ------- > --- POWER (2) -------- (None) > --- PROPULSION (5) --- Compact Wheel > --- UTILITY (6) ------ Machine Analyzer Enhanced Optical Array Improved Melee Analysis Suite > --- WEAPON (2) ------- Thermic Laser Heavy Machine Gun > --- INVENTORY (5) ---- Deep Structural Scanner Tower Shield Cooled Plasma Cannon DRS Beacon (Ready) Peak State ------------ > --- POWER ------------ Improved Deuterium Engine > --- PROPULSION ------- Improved Treads Armored Treads Medium Treads Armored Huge Wheel > --- UTILITY ---------- Improved Cooling System Huge Storage Unit Machine Analyzer Enhanced Optical Array Advanced Terrain Scanner Improved Trap Extractor > --- WEAPON ----------- Subdweller Beam Cannon Magnetic Acceleration Cannon > --- INVENTORY -------- Combat Airjet Coolant Injector Large Storage Unit High-capacity Storage Unit Matter Compressor Deep Structural Scanner Surveybot 17 Chip Tower Shield Thermal Shield EM Shield Authchip [Propulsion] A0-MCA's Component Scanner Improved Trap Extractor Mapping Drone Bay Precision Shock Rifle Plasma Cannon Advanced Assault Cannon Heavy Flak Cannon Missile Launcher Heavy Missile Launcher Plasma Cutter CPS Tube CPS Tube DRS Beacon [Rating: 61] Favorites ----------- Power Ion Engine Engine Ion Engine Propulsion Light Treads Treads Light Treads Wheel Compact Wheel Utility Large Storage Unit Device Seismic Detector Storage Large Storage Unit Processor Enhanced Optical Array Protection Improved Light Armor Plating Weapon Subdweller Beam Cannon Energy Gun Medium Laser Energy Cannon Subdweller Beam Cannon Ballistic Gun Subdweller Machine Gun Ballistic Cannon Magnetic Acceleration Cannon Launcher Grenade Launcher Slashing Weapon Axe Build | -11 -10 -10 -10 -8 -8 -6 ------- Run | Yrd Mat Min Sub Rec Scr Fac Slots Evolved 8 | . . . . . . 8 Power 1 | . . . . . . 1 Propulsion 3 | . . . . . . 3 Utility 4 | . . . . . . 4 Weapon . | . . . . . . . Parts Attached 68 | 7 4 1 19 10 6 21 Power 5 | 1 . . 1 1 1 1 Engine 5 | 1 . . 1 1 1 1 Core . | . . . . . . . Reactor . | . . . . . . . Propulsion 16 | 2 . . 6 4 1 3 Treads 10 | 2 . . 3 3 . 2 Leg . | . . . . . . . Wheel 6 | . . . 3 1 1 1 Hover . | . . . . . . . Flight . | . . . . . . . Utility 24 | 2 3 . 4 3 3 9 Device 13 | 1 2 . 2 . 2 6 Storage 4 | 1 1 . . 1 . 1 Processor 3 | . . . . . 1 2 Hackware . | . . . . . . . Protection 4 | . . . 2 2 . . Artifact . | . . . . . . . Weapon 23 | 2 1 1 8 2 1 8 Energy Gun 5 | 1 1 . 2 . . 1 Energy Cannon 5 | . . . 3 . . 2 Ballistic Gun 3 | 1 . . . 1 . 1 Ballistic Cannon 2 | . . . . . 1 1 Launcher 5 | . . 1 2 . . 2 Special Weapon 1 | . . . . . . 1 Impact Weapon . | . . . . . . . Slashing Weapon 2 | . . . 1 1 . . Piercing Weapon . | . . . . . . . Special Melee Weapon . | . . . . . . . Unidentified Prototypes 1 | . . . . . . 1 Parts Lost 20 | . . . 5 . . 15 Power 3 | . . . 1 . . 2 Propulsion 6 | . . . 2 . . 4 Utility 5 | . . . . . . 5 Weapon 6 | . . . 2 . . 4 Highest Loss Streak 14 | . . . 2 . . 14 To Critical Strikes 2 | . . . . . . 2 Average Backups 16 | 5 10 14 13 15 21 19 Power . | . . . . . . . Propulsion 4 | 3 3 3 2 4 6 . Utility 6 | . 2 3 4 6 8 11 Weapon 4 | 1 4 7 5 4 4 4 Tool/Special . | . . . . . . . Unused Backups 59 | 2 2 2 11 3 18 21 Power 3 | . 1 . 1 1 . . Propulsion 16 | 2 . . 2 . 10 2 Utility 21 | . . . 4 1 3 13 Weapon 16 | . 1 2 4 1 4 4 Tool/Special 3 | . . . . . 1 2 Average Slot Usage (%) 91 | . 100 100 97 98 84 77 Engine 10 | . 14 14 11 14 6 7 Treads 18 | . 28 28 21 22 9 16 Wheel 7 | . . . 6 5 13 5 Device 7 | . 14 14 12 . . 15 Storage 12 | . 14 14 13 14 13 5 Processor 2 | . . . . . 2 13 Protection 5 | . . . 1 12 11 . Energy Gun 4 | . 14 13 8 2 . . Energy Cannon 8 | . . . 17 8 1 8 Ballistic Gun 7 | . 14 14 . 11 11 . Ballistic Cannon 2 | . . . . . 9 2 Slashing Weapon 2 | . . . . 5 3 . Peak Build Rating 61 | 8 9 9 15 21 35 61 Average Rating 20 | 5 8 8 11 18 24 50 On Entrance 13 | . 8 8 9 14 21 35 Avg Prop Armor Cover (%) 15 | . . . 13 14 13 20 Naked Turns . | . . . . . . . Heaviest Build 115 | 14 29 29 42 95 106 115 Greatest Support 40 | 40 40 40 40 40 28 28 Greatest Overweight (x) 6 | . . . 2 5 6 4 Average Overweight (x) 2 | . . . 1 1 3 2 Largest Inventory Capacity 25 | 8 15 15 15 25 25 25 Average Capacity 18 | 7 12 15 14 18 23 21 Most Carried 25 | 8 15 15 15 25 25 25 Average Carried 17 | 5 10 14 14 17 23 21 Final Capacity 25 | 8 15 15 15 25 25 5 Final Carried 25 | 8 14 15 15 25 25 5 Class Distribution -------------------- 49% | Commander-Mutant 32% | Mutant 13% | Scavenger-Mutant 3% | Derelict-Mutant Dominant Class ---------------- Mutant | -10/Materials Mutant | -10/Mines Mutant | -10/Subcaves Commander-Mutant | -8/Recycling Commander-Mutant | -8/Scraptown Commander-Mutant | -6/Factory Resources | -11 -10 -10 -10 -8 -8 -6 ----------- Run | Yrd Mat Min Sub Rec Scr Fac Matter Collected 2009 | 286 75 159 618 148 150 573 Remotely . | . . . . . . . Salvage Created 2703 | 115 266 107 489 1137 . 589 Parts 128 | 12 18 7 33 31 . 27 Haulers Intercepted 1 | . . . . 1 . . Recyclers Shooed 1 | . . . . 1 . . Parts Field Recycled . | . . . . . . . Retrieved Matter . | . . . . . . . Parts Self-Destructed 12 | . . . 12 . . . Prevented 2 | . . . 2 . . . Parts Restored . | . . . . . . . Kills | -11 -10 -10 -10 -8 -8 -6 ------- Run | Yrd Mat Min Sub Rec Scr Fac Combat Hostiles Destroyed 46 | . 8 3 17 4 . 14 Melee 1 | . . . . 1 . . Guns 13 | . 8 . 4 1 . . Cannons 11 | . . . 2 2 . 7 AOE 19 | . . 3 9 . . 7 Classes Destroyed 14 | 1 3 1 3 4 . 2 Worker 4 | . . . . 1 . 3 Builder 3 | . . . . 2 . 1 Tunneler 5 | 5 . . . . . . Hauler 1 | . . . . 1 . . Recycler 10 | . . 1 . 9 . . Turret 2 | . . . 2 . . . Watcher 1 | . 1 . . . . . Swarmer 14 | . 3 3 8 . . . Grunt 15 | . 5 . . 1 . 9 Sentry 3 | . . . 1 2 . . Demolisher 2 | . . . . 2 . . Specialist 2 | . . . . . . 2 Hunter 3 | . . . . . . 3 Subdweller 8 | . . . 8 . . . Best Kill Streak 6 | 1 3 3 6 4 . 6 Combat Bots Only 5 | . 3 3 4 1 . 5 Max Kills in Single Turn 4 | 1 2 3 2 1 . 4 Gunslinging 1 | . 1 . . . . . Exploded 4 | . . 3 2 . . 4 Melee 1 | . . . . 1 . . Uniques/NPCs Destroyed . | . . . . . . . Combat | -11 -10 -10 -10 -8 -8 -6 -------- Run | Yrd Mat Min Sub Rec Scr Fac Hostile Shots Fired 353 | . 45 3 99 13 . 193 Missed 130 | . 9 1 43 5 . 72 Hits 223 | . 36 2 56 8 . 121 Projectile 223 | . 36 2 56 8 . 121 AOE 1 | . . . . . . 1 Critical Strikes 2 | . . . . . . 2 Damage Taken 3568 | . 431 63 715 118 . 2241 Core 1068 | . 94 8 85 25 . 856 Absorbed by Shields 65 | . . . . 4 . 61 Redirected to Shielding 13 | . . . 8 5 . . Core Remaining (%) 57 | 100 . . . . 15 . Volleys Fired 167 | 16 26 15 63 10 . 37 Largest 2 | 2 2 1 2 2 . 2 Hottest 160 | 70 70 50 160 160 . 160 Shots Fired 264 | 32 52 15 89 20 . 56 Gun 139 | 32 52 14 31 6 . 4 Cannon 105 | . . . 47 14 . 44 Launcher 20 | . . 1 11 . . 8 Special . | . . . . . . . Kinetic 50 | 16 26 . . 4 . 4 Thermal 170 | 16 26 14 56 14 . 44 Explosive 20 | . . 1 11 . . 8 Electromagnetic 24 | . . . 22 2 . . Robot Hit Streak 22 | 4 13 6 22 19 . 7 Robot Miss Streak 4 | 3 4 2 1 2 . 1 Penetration Max . | . . . . . . . Secondary Targets 1 | . 1 . . . . . Max Gunslinging Chain 1 | . 1 . . . . . Shots Hit Robots 183 | 17 31 11 50 38 . 36 Core Hits 117 | 7 17 6 31 15 . 41 Critical Kills 1 | . . . 1 . . . Critical Parts Destroyed . | . . . . . . . Critical Strikes 8 | 1 3 1 2 . . 1 Burn 6 | 1 3 1 . . . 1 Meltdown 1 | . . . 1 . . . Corrupt 1 | . . . 1 . . . Melee Attacks 29 | . . . 5 24 . . Impact . | . . . . . . . Slashing 29 | . . . 5 24 . . Piercing . | . . . . . . . Sneak Attacks 23 | . . . 1 22 . . Combat Hostiles . | . . . . . . . Follow-up Attacks . | . . . . . . . Damage Inflicted 7094 | 212 352 273 1493 1955 . 2809 Guns 1254 | 212 351 136 379 98 . 78 Cannons 1644 | . . . 474 295 . 875 Explosions 2573 | . . 137 580 . . 1856 Melee 1622 | . . . 60 1562 . . Ramming 1 | . 1 . . . . . Kinetic 350 | 73 113 . . 66 . 98 Thermal 2901 | 139 238 136 572 295 . 1521 Explosive 1907 | . . 137 580 . . 1190 Electromagnetic 313 | . . . 281 32 . . Impact . | . . . . . . . Slashing 1622 | . . . 60 1562 . . Piercing . | . . . . . . . Highest Corruption 2 | . 2 2 2 . . 1 Average Corruption 1 | . 2 2 1 . . 1 Corruption Purged 2 | . . . 2 . . . Corruption Blocked . | . . . . . . . Effects 33 | . 5 7 15 . . 6 Message Errors 3 | . . 1 1 . . 1 Matter Fused 13 | . . 3 8 . . 2 Heat Flow Errors 3 | . . . 2 . . 1 Energy Discharges 6 | . 2 1 1 . . 2 Data Loss (minor) 5 | . 2 1 2 . . . Data Loss (major) 1 | . 1 . . . . . Misfires 1 | . . . 1 . . . Alerts 1 | . . 1 . . . . Overload Shots . | . . . . . . . Overflow Damage 463 | . . . 35 332 . 96 Projectiles 32 | . . . 15 9 . 8 Explosions 88 | . . . . . . 88 Melee 343 | . . . 20 323 . . Knockbacks . | . . . . . . . Impact . | . . . . . . . Kinetic . | . . . . . . . Secondary . | . . . . . . . Self-Inflicted Damage 112 | . . 47 2 . . 63 Shots 6 | . . 2 1 . . 3 Rammed 1 | . 1 . . . . . Targets Rammed 1 | . 1 . . . . . Kicked . | . . . . . . . Crushed . | . . . . . . . Highest Temperature 354 | 90 182 50 209 354 . 124 Average Temperature 65 | 36 67 16 61 141 . 46 Received Heat Transfer 674 | . 96 . 159 60 . 359 Effects 2 | . . . . 2 . . Interference 2 | . . . . 2 . . Siege Activations . | . . . . . . . Martial Activations . | . . . . . . . Shielding Activations . | . . . . . . . Robots Disrupted . | . . . . . . . Combat Hostiles . | . . . . . . . Robots Corrupted 1 | . . . 1 . . . Combat Hostiles 1 | . . . 1 . . . Parts Fried 1 | . . . 1 . . . Impact Corruptions . | . . . . . . . Robots Melted 1 | . . . 1 . . . Combat Hostiles 1 | . . . 1 . . . Parts Melted 11 | 2 2 . 2 1 . 4 Heat Transferred 5062 | 481 925 481 962 407 . 1806 Parts Sabotaged . | . . . . . . . Parts Stolen . | . . . . . . . Parts Stripped . | . . . . . . . Power Chain Reactions . | . . . . . . . Alert | -11 -10 -10 -10 -8 -8 -6 ------- Run | Yrd Mat Min Sub Rec Scr Fac Maximum Alert Level 1 | . . . . . . 1 Low Security (%) 91 | 100 100 100 . 100 . 67 Level 1 8 | . . . . . . 32 Level 2 . | . . . . . . . Level 3 . | . . . . . . . Level 4 . | . . . . . . . Level 5 . | . . . . . . . High Security . | . . . . . . . Max Security . | . . . . . . . Peak Influence 357 | 5 100 113 . 128 . 357 Initial 16 | . . 16 . . . . Average 56 | . 34 19 . 49 . 111 Influence Increases 1888 | 25 229 102 266 438 . 828 Destroy 0b10 Robot/C 900 | . 160 60 220 120 . 340 Destroy 0b10 Robot/NC 140 | 25 5 5 . 85 . 20 Destroy Leader 122 | . 22 10 10 . . 80 Allied During Kill 88 | . . . 6 46 . 36 Successful Hack 33 | . 12 . . 5 . 16 Select Force Hacks 180 | . . . . 180 . . Disable Machine 60 | . . 15 . . . 45 Anti-Garrison Action 150 | . . . . . . 150 Destroy Structure 65 | . . 12 . 2 . 51 Lose Combat Pursuer 150 | . 30 . 30 . . 90 Influence Decreases 1562 | 25 185 146 266 360 78 502 Entered New Map 106 | . . 28 . . 78 . Time Decay 1153 | 25 185 118 242 354 . 229 Lost Part 174 | . . . 24 . . 150 Lost Ally 129 | . . . . 6 . 123 Squads Dispatched 14 | . 2 1 . . . 11 Investigation 3 | . 1 1 . . . 1 Extermination 2 | . . . . . . 2 Reinforcement 7 | . 1 . . . . 6 Assault 2 | . . . . . . 2 Garrison . | . . . . . . . Intercept . | . . . . . . . Searches Triggered . | . . . . . . . Construction Impeded 1 | . . . . . . 1 Haulers Reinforced . | . . . . . . . Active Scanning Responses . | . . . . . . . Cargo Convoy Interrupts . | . . . . . . . Stealth | -11 -10 -10 -10 -8 -8 -6 --------- Run | Yrd Mat Min Sub Rec Scr Fac Distress Signals 3 | . 1 . . . . 2 Communications Jammed 4 | . . . . . . 4 Distress Signals 4 | . . . . . . 4 Times Spotted 75 | . 15 3 20 5 . 32 Peak Tracking Total 9 | . 4 3 4 2 . 9 Tactical Retreats 5 | . 1 . 2 . . 2 Traps | -11 -10 -10 -10 -8 -8 -6 ------- Run | Yrd Mat Min Sub Rec Scr Fac Traps Triggered 4 | . 3 . . . . 1 Indirectly . | . . . . . . . Trap Hack Attempts . | . . . . . . . Triggered . | . . . . . . . Disarmed . | . . . . . . . Reprogrammed . | . . . . . . . Reused . | . . . . . . . Traps Extracted . | . . . . . . . Installed . | . . . . . . . Triggered . | . . . . . . . Most Traps Carried 1 | . . . . . 1 1 Machines | -11 -10 -10 -10 -8 -8 -6 ---------- Run | Yrd Mat Min Sub Rec Scr Fac Machines Disabled 9 | . . 1 4 . . 4 Max in Single Turn 4 | . . 1 3 . . 4 Garrison Access 1 | . . . . . . 1 Machines Repaired . | . . . . . . . Machines Dismantled . | . . . . . . . Machines Sabotaged . | . . . . . . . Overloaded Fab Kills . | . . . . . . . Hacking | -11 -10 -10 -10 -8 -8 -6 --------- Run | Yrd Mat Min Sub Rec Scr Fac Machines Accessed 20 | . 4 1 2 8 3 2 Terminals 7 | . 4 . . 2 . 1 Fabricators . | . . . . . . . Repair Stations . | . . . . . . . Recycling Units 7 | . . . . 6 . 1 Scanalyzers . | . . . . . . . Garrison Access . | . . . . . . . Total Hacks 44 | . 4 1 7 10 19 3 Successful 40 | . 3 1 7 8 19 2 Failed 4 | . 1 . . 2 . 1 Catastrophic . | . . . . . . . Database Lockouts . | . . . . . . . Manual 12 | . 1 . . 10 . 1 Terminals 9 | . 4 . . 3 . 2 Fabricators . | . . . . . . . Repair Stations . | . . . . . . . Recycling Units 8 | . . . . 7 . 1 Scanalyzers . | . . . . . . . Garrison Access . | . . . . . . . Terminal Hacks 31 | . 3 1 7 . 19 1 Record 24 | . . . 6 . 18 . Prototype ID Bank 1 | . 1 . . . . . Open Door 1 | . . 1 . . . . Branch Access Points 1 | . 1 . . . . . Surveillance Status 1 | . . . . . . 1 Zone Layout 1 | . 1 . . . . . Proto ID Catalog 2 | . . . 1 . 1 . Fabricator Hacks . | . . . . . . . Repair Station Hacks . | . . . . . . . Recycling Unit Hacks . | . . . . . . . Scanalyzer . | . . . . . . . Garrison Access Hacks . | . . . . . . . Unauthorized Hacks 9 | . . . . 8 . 1 Terminals 2 | . . . . 2 . . Botnet 2 | . . . . 2 . . Fabricators . | . . . . . . . Repair Stations . | . . . . . . . Recycling Units 7 | . . . . 6 . 1 Tunnel 6 | . . . . 6 . . Fedlink 1 | . . . . . . 1 Scanalyzers . | . . . . . . . Garrison Access . | . . . . . . . Data Cores Recovered . | . . . . . . . Used . | . . . . . . . Hacking Detections 2 | . . . . 1 . 1 Full Trace Events . | . . . . . . . Feedback Events . | . . . . . . . Feedback Blocked . | . . . . . . . Robot Schematics Acquired . | . . . . . . . Robots Built . | . . . . . . . Authchips . | . . . . . . . Time . | . . . . . . . Total Robot Build Rating . | . . . . . . . Part Schematics Acquired . | . . . . . . . Parts Built . | . . . . . . . Authchips . | . . . . . . . Time . | . . . . . . . Total Part Build Rating . | . . . . . . . Part Studies Acquired . | . . . . . . . Parts Repaired . | . . . . . . . Time . | . . . . . . . Parts Recycled . | . . . . . . . Recycled Matter . | . . . . . . . Retrieved Matter . | . . . . . . . Retrieved Components . | . . . . . . . Parts Scanalyzed . | . . . . . . . Part Schematics Acquired . | . . . . . . . Parts Damaged . | . . . . . . . Bothacking | -11 -10 -10 -10 -8 -8 -6 ------------ Run | Yrd Mat Min Sub Rec Scr Fac Used RIF Installer . | . . . . . . . Robots Hacked . | . . . . . . . Non-combat . | . . . . . . . Combat . | . . . . . . . Robot Hacks Applied . | . . . . . . . Relay Couplers Released 2 | . . . . . . 2 Machine Destruction 2 | . . . . . . 2 Fabnet Peak Effective % . | . . . . . . . Robots Rewired 14 | . . . . 14 . . Allies Hacked . | . . . . . . . Hacks Repelled . | . . . . . . . Allies | -11 -10 -10 -10 -8 -8 -6 -------- Run | Yrd Mat Min Sub Rec Scr Fac Total Allies 16 | . . 2 . 14 . . Largest Group 13 | . . 2 2 13 12 12 Highest-Rated Group 217 | . . 45 45 217 185 185 Highest-Rated Ally 32 | . . 31 31 32 27 27 Initial UFD Resources 23 | . . . . . . 23 Total Orders 15 | . . . . . 5 10 STAY 7 | . . . . . 2 5 FOLLOW 8 | . . . . . 3 5 Ally Attacks 35 | . . . 2 11 . 22 Total Damage 574 | . . . 20 168 . 386 Kills 8 | . . . . 4 . 4 Allies Corrupted . | . . . . . . . Allies Melted . | . . . . . . . Intel | -11 -10 -10 -10 -8 -8 -6 ------- Run | Yrd Mat Min Sub Rec Scr Fac Active Infowar (turns) 5549 | 49 508 708 2537 5 583 1159 Optics 1742 | . . . . . 583 1159 Terrain 188 | . 27 . . . . 161 Seismic 4623 | 49 481 708 2537 5 . 843 Machine Analysis 1155 | . . . . . . 1155 Jamming 331 | . . . . . . 331 Robot Analysis Total . | . . . . . . . Derelict Logs Recovered 6 | . . 1 . . 5 . Drone Launches . | . . . . . . . Drone Recoveries . | . . . . . . . Exploration | -11 -10 -10 -10 -8 -8 -6 ------------- Run | Yrd Mat Min Sub Rec Scr Fac Turns Passed 10255 | 229 529 708 2940 1922 2768 1159 Spaces Moved 5631 | 97 254 400 1532 894 1719 735 Core 421 | 3 . . . . 220 198 Treads 2049 | 94 254 400 725 575 . 1 Legs . | . . . . . . . Wheels 3161 | . . . 807 319 1499 536 Hover . | . . . . . . . Flight . | . . . . . . . Fastest Speed 50 | 50 160 160 90 160 50 50 Average Speed 158 | 156 160 160 169 179 152 119 Slowest Speed 250 | 160 160 160 250 250 190 240 Overloaded Moves . | . . . . . . . Propulsion Burnouts . | . . . . . . . Robots Hopped . | . . . . . . . Potential Cave-ins . | . . . . . . . Cave-ins Triggered . | . . . . . . . Exploration Rate (%) 60 | 4 60 75 78 98 89 19 Regions Visited 6 Branch Regions 4 Pre-discovered Areas 14 | . . . 2 6 6 . Known Exits Taken 2 | . 1 . . . 1 . Unknown Exits Taken 4 | 1 . 1 1 1 . . Scrap Searched 12 | . . 2 4 . 6 . Spaces Dug 21 | . . . 16 . . 5 Terrain Destroyed 112 | . . 12 48 3 . 49 Melee . | . . . . . . . Projectile 26 | . . . 14 3 . 9 AOE 86 | . . 12 34 . . 40 Terrain Rammed . | . . . . . . . Walls Destroyed . | . . . . . . . Machines Disabled . | . . . . . . . Actions | -11 -10 -10 -10 -8 -8 -6 --------- Run | Yrd Mat Min Sub Rec Scr Fac Total 6688 | 143 329 456 1777 1153 1873 957 Wait 390 | 12 31 29 79 75 63 101 Move 5625 | 96 253 399 1531 893 1718 735 Hop . | . . . . . . . Pick Up 136 | 10 8 6 32 19 43 18 Fast Attach 37 | 7 . . 4 5 9 12 Attach 22 | . . . 6 1 1 14 Detach 11 | . . . 3 1 2 5 Swap 68 | . 6 2 29 8 5 18 Drop 99 | 2 4 5 23 16 32 17 Fire 167 | 16 26 15 63 10 . 37 Melee 29 | . . . 5 24 . . Ram . | . . . . . . . Kick . | . . . . . . . Crush 1 | . 1 . . . . . Escape Stasis . | . . . . . . . Rewire 101 | . . . . 101 . . Trap . | . . . . . . . Miscellaneous 2 | . . . 2 . . . Route ------- -11/Scrapyard -10/Materials (discovered 4 exits: [*Mat x2] / *Min x2) -10/Mines (discovered 2 exits: [*Mat] / *Sub) -10/Subcaves (discovered 3 exits: [*Mat x2] / *Rec) -8/Recycling (discovered 2 exits: *Fac / *Scr) -8/Scraptown (discovered 2 exits: *Fac x2) -6/Factory (discovered 3 exits: Fac / Ext x2) History --------- Turn | Location | Event 2 | -11/Scrapyard | Met Revision 17 4 | -11/Scrapyard | Discovered new exit (range 15) 230 | -11/Scrapyard | Entered Materials 285 | -10/Materials | Identified exit to Mines 325 | -10/Materials | Build established: Mutant 395 | -10/Materials | Discovered new exit (range 6) 569 | -10/Materials | Discovered new exit (range 4) 759 | -10/Materials | Entered Mines 1143 | -10/Mines | Learned 2 Materials zone layouts 1149 | -10/Mines | Discovered new exit (range 11) 1364 | -10/Mines | Met a Derelict shopkeep closing up shop 1448 | -10/Mines | Discovered new exit (range 10) 1467 | -10/Mines | Entered Subcaves 1467 | -10/Subcaves | Accompanied by 2 allies 1468 | -10/Subcaves | Approached by a straggling Scientist 1472 | -10/Subcaves | Led the pair of lost Derelicts to an unsafe place 1533 | -10/Subcaves | Visited Clippyterm 1538 | -10/Subcaves | Learned location of Deep Caves (-6) 1538 | -10/Subcaves | Learned Factory garrison access intel 1658 | -10/Subcaves | Discovered new exit (range 16) 1663 | -10/Subcaves | Core integrity fell below 50% 2015 | -10/Subcaves | Discovered new exit (range 9) 2366 | -10/Subcaves | Disturbed a concealed Subdweller 2736 | -10/Subcaves | Discovered new exit (range 5) 2737 | -10/Subcaves | Shifting Twisted Machinery released Scrap Shield 2962 | -10/Subcaves | Ambushed by Subdwellers from Twisted Machinery 3295 | -10/Subcaves | Build established: Scavenger-Mutant 3297 | -10/Subcaves | Learned location of Zion (-6) 3297 | -10/Subcaves | Met a Zionite searching for "candidates" 3436 | -10/Subcaves | A swath of the cavern ceiling suddenly collapsed 3897 | -10/Subcaves | Visited 4L-MR0's lab 3921 | -10/Subcaves | Found Tower Shield 4407 | -10/Subcaves | Entered Recycling 4677 | -8/Recycling | Core integrity fell below 20% 4705 | -8/Recycling | Build established: Derelict-Mutant 5086 | -8/Recycling | Build established: Commander-Mutant 5425 | -8/Recycling | Discovered new exit (range 15) 6248 | -8/Recycling | Scanned before Scraplab entrance 6272 | -8/Recycling | Entered Scraplab 6286 | -8/Recycling | Discovered new exit (range 3) 6329 | -8/Recycling | Entered Scraptown 6329 | -8/Scraptown | Accompanied by 12 allies 6620 | -8/Scraptown | Scanned Subdweller tech in exchange for log data 6627 | -8/Scraptown | Learned Research interactive machine intel 6629 | -8/Scraptown | Learned location of Warlord (-5) 6631 | -8/Scraptown | Learned location of 1 exit from Proximity Caves 6632 | -8/Scraptown | Learned 12 Factory zone layouts 6648 | -8/Scraptown | Discovered new exit (range 11) 7137 | -8/Scraptown | Visited UFD Registry 7137 | -8/Scraptown | Registered with UFD as "Bladespawn" 7258 | -8/Scraptown | Delivered Scrap Shield to a Scientist 7351 | -8/Scraptown | Visited Supply Room 7397 | -8/Scraptown | Visited A0-MCA Data Center 7407 | -8/Scraptown | Given a B- rating by A0-MCA 7413 | -8/Scraptown | Found A0-MCA's Component Scanner 7506 | -8/Scraptown | Visited Spacefarers 7561 | -8/Scraptown | Visited Fellowship of the Rings 7580 | -8/Scraptown | Heard Great Nut preacher, LISTEN AND RECITE! 7624 | -8/Scraptown | Visited SPCMW 7657 | -8/Scraptown | Visited Assassins FH 7694 | -8/Scraptown | Visited Cyclists 7715 | -8/Scraptown | Entered Cyclist Reading Room 7748 | -8/Scraptown | Visited Observation Area 7855 | -8/Scraptown | Visited Cartography Club 7883 | -8/Scraptown | Visited Science Guys 7954 | -8/Scraptown | Visited Junk Repository 8063 | -8/Scraptown | Visited DA-N13 Charitable Foundation 8080 | -8/Scraptown | Found DCF Scrap (27 items) 8107 | -8/Scraptown | Visited Junk Repository 8150 | -8/Scraptown | Visited Derelict Rescue Squad 8162 | -8/Scraptown | Found DRS Beacon 8198 | -8/Scraptown | Visited LU-1G1's Boring Crew 8620 | -8/Scraptown | Found Surveybot 17 Chip 8714 | -8/Scraptown | Learned 8 Research zone layouts 8714 | -8/Scraptown | Learned 8 Access zone layouts 8714 | -8/Scraptown | Learned 4 Recycling zone layouts 8714 | -8/Scraptown | Learned 12 Upper Caves zone layouts 8714 | -8/Scraptown | Learned 16 Proximity Caves zone layouts 8714 | -8/Scraptown | Learned location of 1 exit from Upper Caves 8714 | -8/Scraptown | Learned location of 3 exits from Proximity Caves 8714 | -8/Scraptown | Identified exit to Factory 8734 | -8/Scraptown | Found Deep Structural Scanner 8986 | -8/Scraptown | Met Optimus 8986 | -8/Scraptown | Accepted into 0bPrime 9097 | -8/Scraptown | Entered Factory 9097 | -6/Factory | Accompanied by 12 allies 9097 | -6/Factory | Evolved 8 slots: Power x1, Propulsion x3, Utility x4 9098 | -6/Factory | Identified exit to Factory 9099 | -6/Factory | Identified exit to Extension 9100 | -6/Factory | Loaded intel: 4 garrison access locations 9246 | -6/Factory | Loaded intel: 8 recycling unit locations 9651 | -6/Factory | Lost 3 allies 9791 | -6/Factory | Lost 4 allies 9918 | -6/Factory | Lost 4 allies 10112 | -6/Factory | Core integrity fell below 50% 10145 | -6/Factory | Lost 14 parts (2p4n4u4w) 10170 | -6/Factory | Build established: Mutant 10206 | -6/Factory | Core integrity fell below 20% 10256 | -6/Factory | Destroyed by Y-54 Guardian via exploding Fusion Modulator Last Messages --------------- 10146_ Acquired 45 matter. 10185_ Acquired Com. Wheel. 10187_ Acquired Imp. Melee Analysis Suite. 10201_ Acquired Energy Filter. 10210_ ALERT: Potential suspicious activity detected, Programmers report to Factory Zone 6N. 10225_ Connecting with Terminal... >>Enumerate(Surveillance) Retrieving latest reported positions... Found 8 active surveillance squads. Downloaded coordinate data. 10227_ Acquired Thermic Laser. 10232_ Acquired Hvy. Machine Gun. 10251_ Y-54 Guardian suffers critical hit (Burn). 10255_ Y-54 Guardian heat spikes uncontrollably. 10256_ Fusion Modulator explodes. 10256_ Y-54 Guardian heat damages core (-15). 10256_ Energy Filter destroyed. Map ----- +----------------------------------------------------+ | ??????????????????????????????# #??????????????? | | ??????????????????????????"""?# #??????????????? | | ???????????????????????????G"?+ #??????????????? | | ??????????????????????????"""?# #??????????????? | | ??????????????????????????????# #??????????????? | | ??????????????????############# ##?????????????? | | ????????????################## #?????????????? | | ????????????# ! # ############### | | ????????????# ! = # # " | | ????????????# # " # | | ????????????# # #### # # | | ????????????# """" # #??####### # | | ????????????# """" ! # #????????# # | | ????????????# """" + #????????# + | | ????????????# """" # #????????# """ """ # | | ????????????########### #????????# """ """ + | | ????????????# # #????????# """ """ # | | ????????????? # #????????# "" "" # | | ????????????# """ """ # #????????# "" "" # | | ????????????# """ """ # #????????# # | | ????????????# """ """ + #????????############## | | ????????????# # #?????????????????????# | | ????????????# # #?????????????????????# | | ????????????# + #?????????????????????## | | ????????????############Y#######?????##########??# | | ??????????????????# @ #?????# #??# | | ??????????????????# #?????# """" #??# | | ??????????????????# """ #?????# """" #??# | | ??????????????????# """ #?????# """" #??# | | ??????????????????# """ #?????# """" #??# | | ??????????????????# #????????""""?????? | | ??????????????????# """ """ #????????""""?????? | | ??????????????????# """ """ #????????""""?????? | | ??????????????????# """ """ #?????????????????? | | ??????????????????# #?????????????????? | | ??????????????????# ""T"" #?????????????????? | | ??????????????????# """"" #?????????????????? | | ??????????????????##############?????????????????? | | ?????????????????????????????????????????????????? | | ?????????????????????????????????????????????????? | | ?????????????????????????????????????????????????? | | ?????????????????????????????????????????????????? | | ?????????????????????????????????????????????????? | | ?????????????????????????????????????????????????? | | ?????????????????????????????????????????????????? | | ???????????????????????????????????"""?????#????"" | | ???????????????????????????????????"Y"??????????"" | | ????????????????????????????????????????????????"" | | ?????????????????????????????????????????????????? | | ????????????????????????????????????????????????"" | +----------------------------------------------------+ Best States ------------- Heat Dissipation 64 Energy Generation 21 Energy Capacity 315 Matter Stores 300 Matter Capacity 300 Sight Range 22 Terrain Scan Range 20 Terrain Scan Density 10 Jamming Range 12 Armor Coverage 800 Core Shielding 20 Evasion (%) 50 Melee Accuracy 6 Recoil Reduction 2 Particle Charging 20 Authchip Count 1 Trap Extractor Capacity 6 Item Schematics ----------------- None Robot Schematics ------------------ None Fabricated ------------ Nothing Repaired ---------- Nothing Studied --------- None Alien Tech Used ----------------- None Achievements -------------- None Challenges ------------ None Game ------ Seed LightpackCoolingCutter Manual? 0 Play Time 01:51:02 Cumulative 483.1 hours Start 2026.04.14 @ 10:42:43 End 2026.04.14 @ 13:06:14 Sessions 3 Manual Loads 0 Difficulty Rogue Special Mode None Game No. 87 Rogue 87 Adventurer 0 Explorer 0 Win Type - Total 17 Types 7/1/5/1/1/0/1/1/0/0 Lore% 83 Gallery% 76 Achievement% 71 Wizard Run 0 Options --------- Layout 1 ASCII 0 Keyboard 1 Movement Vi Keybinds 1 Fullscreen 1 Font 36/Tamsyn Map View 50x40 Zoom Use 0% Tactical HUD 1 Map Filters NONE Filters NONE Steam 1 RUN: e24c854f-5713-4c91-a500-15aa8d3c803e